Cogmind - Beta 16.1 @@@ ROGUE MODE // 2026.02.17 @ 21:04:23 Player: Gingerlink Result: Self-destructed Performance ------------- Evolutions (1) 500 Regions Visited (2) 400 Robots Destroyed (11) 55 Value Destroyed (222) 222 Prototype IDs (0) 0 Alien Tech Used (0) 0 Bonus (0) 0 TOTAL SCORE: 1177 Bonus ------- None Cogmind --------- Core Integrity 315/400 Matter 289/300 Energy 199/250 System Corruption 0% Temperature Critical (756) Movement Walking (330) Ox3 Location -9/Materials Parts ------- > --- POWER (1) -------- Ion Engine > --- PROPULSION (4) --- Aluminum Leg > --- UTILITY (2) ------ Large Storage Unit Light Armor Plating > --- WEAPON (2) ------- Particle Gun Particle Cannon > --- INVENTORY (15) --- Light Ion Engine Heat Sink Small Storage Unit Large Storage Unit Huge Storage Unit Terrain Scanner EM Shotgun Particle Cannon Light Assault Rifle Heavy Assault Rifle Peak State ------------ > --- POWER ------------ Ion Engine > --- PROPULSION ------- Aluminum Leg Aluminum Leg Aluminum Leg Aluminum Leg > --- UTILITY ---------- Large Storage Unit Sensor Array > --- WEAPON ----------- Particle Cannon Particle Cannon > --- INVENTORY -------- Light Ion Engine Heat Sink Small Storage Unit Large Storage Unit Huge Storage Unit Terrain Scanner Light Armor Plating EM Shotgun Light Assault Rifle [Rating: 12] Favorites ----------- Power Ion Engine Engine Ion Engine Propulsion Aluminum Leg Leg Aluminum Leg Utility Small Storage Unit Device Sensor Array Storage Small Storage Unit Protection Light Armor Plating Weapon Particle Cannon Energy Gun Particle Gun Energy Cannon Particle Cannon Ballistic Gun Light Assault Rifle Build | -11 -10 -9 ------- Run | Yrd Mat Mat Slots Evolved 2 | . . 2 Power . | . . . Propulsion 2 | . . 2 Utility . | . . . Weapon . | . . . Parts Attached 18 | 6 8 4 Power 2 | 1 1 . Engine 2 | 1 1 . Core . | . . . Reactor . | . . . Propulsion 5 | 2 2 1 Treads . | . . . Leg 5 | 2 2 1 Wheel . | . . . Hover . | . . . Flight . | . . . Utility 5 | 1 2 2 Device 2 | . 2 . Storage 2 | 1 . 1 Processor . | . . . Hackware . | . . . Protection 1 | . . 1 Artifact . | . . . Weapon 6 | 2 3 1 Energy Gun 3 | 1 1 1 Energy Cannon 2 | . 2 . Ballistic Gun 1 | 1 . . Ballistic Cannon . | . . . Launcher . | . . . Special Weapon . | . . . Impact Weapon . | . . . Slashing Weapon . | . . . Piercing Weapon . | . . . Special Melee Weapon . | . . . Unidentified Prototypes . | . . . Parts Lost 5 | . 1 4 Power . | . . . Propulsion 4 | . 1 3 Utility 1 | . . 1 Weapon . | . . . Highest Loss Streak 4 | . 1 4 To Critical Strikes . | . . . Average Backups 7 | 3 7 9 Power . | . 1 1 Propulsion 2 | 2 3 . Utility 2 | . 1 5 Weapon 1 | . 1 2 Tool/Special . | . . . Unused Backups 10 | . 5 5 Power . | . . . Propulsion 4 | . 4 . Utility 3 | . . 3 Weapon 3 | . 1 2 Tool/Special . | . . . Average Slot Usage (%) 92 | . 87 99 Engine 12 | . 14 11 Leg 33 | . 25 43 Device 8 | . 6 11 Storage 12 | . 14 11 Energy Gun 3 | . 1 5 Energy Cannon 20 | . 23 16 Peak Build Rating 12 | 6 9 12 Average Rating 9 | 4 7 11 On Entrance 5 | . 6 9 Avg Prop Armor Cover (%) . | . . . Naked Turns . | . . . Heaviest Build 34 | 12 19 34 Greatest Support 40 | 20 20 40 Greatest Overweight (x) 1 | . 1 . Average Overweight (x) . | . . . Largest Inventory Capacity 15 | 8 8 15 Average Capacity 10 | 6 8 14 Most Carried 11 | 6 8 11 Average Carried 7 | 3 7 9 Final Capacity 15 | 8 8 15 Final Carried 10 | 6 8 10 Class Distribution -------------------- 100% | Mutant Dominant Class ---------------- Mutant | -10/Materials Mutant | -9/Materials Resources | -11 -10 -9 ----------- Run | Yrd Mat Mat Matter Collected 406 | 237 140 29 Remotely . | . . . Salvage Created 275 | . 211 64 Parts 19 | . 15 4 Haulers Intercepted . | . . . Recyclers Shooed . | . . . Parts Field Recycled . | . . . Retrieved Matter . | . . . Parts Self-Destructed . | . . . Prevented . | . . . Parts Restored . | . . . Kills | -11 -10 -9 ------- Run | Yrd Mat Mat Combat Hostiles Destroyed 10 | . 9 1 Guns 3 | . 2 1 Cannons 7 | . 7 . Classes Destroyed 3 | . 2 1 Watcher 1 | . . 1 Swarmer 6 | . 6 . Grunt 4 | . 3 1 Best Kill Streak 2 | . 2 1 Combat Bots Only 2 | . 2 1 Max Kills in Single Turn 1 | . 1 1 Gunslinging . | . . . Exploded . | . . . Melee . | . . . Uniques/NPCs Destroyed . | . . . Combat | -11 -10 -9 -------- Run | Yrd Mat Mat Hostile Shots Fired 88 | . 69 19 Missed 22 | . 20 2 Hits 66 | . 49 17 Projectile 66 | . 49 17 Damage Taken 823 | . 529 294 Core 211 | . 126 85 Absorbed by Shields . | . . . Core Remaining (%) 74 | 100 49 . Volleys Fired 39 | . 27 12 Largest 2 | . 2 2 Hottest 136 | . 136 136 Shots Fired 67 | . 43 24 Gun 22 | . 11 11 Cannon 45 | . 32 13 Launcher . | . . . Special . | . . . Kinetic . | . . . Thermal 67 | . 43 24 Explosive . | . . . Electromagnetic . | . . . Robot Hit Streak 7 | . 7 5 Robot Miss Streak 4 | . 4 3 Penetration Max . | . . . Secondary Targets . | . . . Shots Hit Robots 36 | . 24 12 Core Hits 13 | . 10 3 Critical Kills . | . . . Critical Parts Destroyed . | . . . Critical Strikes 4 | . 3 1 Burn 4 | . 3 1 Melee Attacks . | . . . Impact . | . . . Slashing . | . . . Piercing . | . . . Sneak Attacks . | . . . Combat Hostiles . | . . . Follow-up Attacks . | . . . Damage Inflicted 681 | 4 442 235 Guns 224 | . 112 112 Cannons 453 | . 330 123 Explosions . | . . . Melee . | . . . Ramming 4 | 4 . . Kinetic . | . . . Thermal 677 | . 442 235 Explosive . | . . . Electromagnetic . | . . . Impact . | . . . Slashing . | . . . Piercing . | . . . Highest Corruption . | . . . Average Corruption . | . . . Corruption Purged . | . . . Corruption Blocked . | . . . Overload Shots . | . . . Overflow Damage 14 | . 14 . Projectiles 14 | . 14 . Explosions . | . . . Melee . | . . . Knockbacks . | . . . Impact . | . . . Kinetic . | . . . Secondary . | . . . Self-Inflicted Damage . | . . . Shots . | . . . Rammed . | . . . Targets Rammed 2 | 1 1 . Kicked 2 | 1 1 . Crushed . | . . . Highest Temperature 756 | . 504 756 Average Temperature 202 | . 161 337 Received Heat Transfer 180 | . 60 120 Effects 18 | . 3 15 Shutdowns 4 | . 2 2 Energy Bleed 1 | . 1 . Short Circuit 1 | . . 1 Damage (minor) 1 | . . 1 Damage (major) 10 | . . 10 Damage (core) 1 | . . 1 Siege Activations . | . . . Martial Activations . | . . . Shielding Activations . | . . . Robots Disrupted . | . . . Combat Hostiles . | . . . Robots Corrupted . | . . . Combat Hostiles . | . . . Parts Fried . | . . . Impact Corruptions . | . . . Robots Melted . | . . . Combat Hostiles . | . . . Parts Melted 3 | . 3 . Heat Transferred 1702 | . 1147 555 Parts Sabotaged . | . . . Parts Stolen . | . . . Parts Stripped . | . . . Power Chain Reactions . | . . . Alert | -11 -10 -9 ------- Run | Yrd Mat Mat Maximum Alert Level . | . . . Low Security (%) 100 | 100 100 100 Level 1 . | . . . Level 2 . | . . . Level 3 . | . . . Level 4 . | . . . Level 5 . | . . . High Security . | . . . Max Security . | . . . Peak Influence 55 | . 55 28 Initial 16 | . . 16 Average 10 | . 18 1 Influence Increases 284 | . 241 43 Destroy 0b10 Robot/C 200 | . 180 20 Destroy 0b10 Robot/NC 5 | . . 5 Destroy Leader 32 | . 30 2 Disable Machine 15 | . . 15 Destroy Structure 2 | . 1 1 Lose Combat Pursuer 30 | . 30 . Influence Decreases 284 | . 202 82 Entered New Map 23 | . . 23 Time Decay 223 | . 192 31 Lost Part 38 | . 10 28 Squads Dispatched 2 | . 1 1 Investigation . | . . . Extermination . | . . . Reinforcement 2 | . 1 1 Assault . | . . . Garrison . | . . . Intercept . | . . . Searches Triggered . | . . . Construction Impeded . | . . . Haulers Reinforced . | . . . Active Scanning Responses . | . . . Cargo Convoy Interrupts . | . . . Stealth | -11 -10 -9 --------- Run | Yrd Mat Mat Distress Signals 1 | . . 1 Communications Jammed . | . . . Distress Signals . | . . . Times Spotted 21 | . 15 6 Peak Tracking Total 5 | . 4 5 Tactical Retreats 2 | . 2 . Traps | -11 -10 -9 ------- Run | Yrd Mat Mat Traps Triggered . | . . . Indirectly . | . . . Trap Hack Attempts . | . . . Triggered . | . . . Disarmed . | . . . Reprogrammed . | . . . Reused . | . . . Traps Extracted . | . . . Installed . | . . . Triggered . | . . . Machines | -11 -10 -9 ---------- Run | Yrd Mat Mat Machines Disabled 1 | . . 1 Max in Single Turn 1 | . . 1 Machines Repaired . | . . . Machines Dismantled . | . . . Machines Sabotaged . | . . . Overloaded Fab Kills . | . . . Hacking | -11 -10 -9 --------- Run | Yrd Mat Mat Machines Accessed . | . . . Terminals . | . . . Fabricators . | . . . Repair Stations . | . . . Recycling Units . | . . . Scanalyzers . | . . . Garrison Access . | . . . Total Hacks . | . . . Successful . | . . . Failed . | . . . Catastrophic . | . . . Database Lockouts . | . . . Manual . | . . . Terminals . | . . . Fabricators . | . . . Repair Stations . | . . . Recycling Units . | . . . Scanalyzers . | . . . Garrison Access . | . . . Terminal Hacks . | . . . Fabricator Hacks . | . . . Repair Station Hacks . | . . . Recycling Unit Hacks . | . . . Scanalyzer . | . . . Garrison Access Hacks . | . . . Unauthorized Hacks . | . . . Terminals . | . . . Fabricators . | . . . Repair Stations . | . . . Recycling Units . | . . . Scanalyzers . | . . . Garrison Access . | . . . Data Cores Recovered . | . . . Used . | . . . Hacking Detections . | . . . Full Trace Events . | . . . Feedback Events . | . . . Feedback Blocked . | . . . Robot Schematics Acquired . | . . . Robots Built . | . . . Authchips . | . . . Time . | . . . Total Robot Build Rating . | . . . Part Schematics Acquired . | . . . Parts Built . | . . . Authchips . | . . . Time . | . . . Total Part Build Rating . | . . . Part Studies Acquired . | . . . Parts Repaired . | . . . Time . | . . . Parts Recycled . | . . . Recycled Matter . | . . . Retrieved Matter . | . . . Retrieved Components . | . . . Parts Scanalyzed . | . . . Part Schematics Acquired . | . . . Parts Damaged . | . . . Bothacking | -11 -10 -9 ------------ Run | Yrd Mat Mat Used RIF Installer . | . . . Robots Hacked . | . . . Non-combat . | . . . Combat . | . . . Robot Hacks Applied . | . . . Relay Couplers Released . | . . . Fabnet Peak Effective % . | . . . Robots Rewired . | . . . Allies Hacked . | . . . Hacks Repelled . | . . . Allies | -11 -10 -9 -------- Run | Yrd Mat Mat Total Allies . | . . . Largest Group . | . . . Highest-Rated Group . | . . . Highest-Rated Ally . | . . . Total Orders . | . . . Ally Attacks . | . . . Total Damage . | . . . Kills . | . . . Allies Corrupted . | . . . Allies Melted . | . . . Intel | -11 -10 -9 ------- Run | Yrd Mat Mat Active Infowar (turns) 596 | . 168 428 Sensors 596 | . 168 428 Robot Analysis Total . | . . . Derelict Logs Recovered . | . . . Drone Launches . | . . . Drone Recoveries . | . . . Exploration | -11 -10 -9 ------------- Run | Yrd Mat Mat Turns Passed 1138 | 110 593 435 Spaces Moved 652 | 76 367 209 Core 5 | 5 . . Treads . | . . . Legs 647 | 71 367 209 Wheels . | . . . Hover . | . . . Flight . | . . . Fastest Speed 50 | 50 120 120 Average Speed 120 | 115 122 120 Slowest Speed 190 | 120 190 120 Overloaded Moves . | . . . Propulsion Burnouts . | . . . Robots Hopped . | . . . Potential Cave-ins . | . . . Cave-ins Triggered . | . . . Exploration Rate (%) 20 | 3 35 22 Regions Visited 2 Branch Regions . Pre-discovered Areas . | . . . Known Exits Taken . | . . . Unknown Exits Taken 2 | 1 1 . Scrap Searched . | . . . Spaces Dug . | . . . Terrain Destroyed . | . . . Melee . | . . . Projectile . | . . . AOE . | . . . Terrain Rammed . | . . . Walls Destroyed . | . . . Machines Disabled . | . . . Actions | -11 -10 -9 --------- Run | Yrd Mat Mat Total 931 | 95 468 368 Wait 183 | 7 42 134 Move 650 | 75 366 209 Hop . | . . . Pick Up 21 | 6 9 6 Fast Attach 9 | 6 3 . Attach 6 | . 3 3 Detach 3 | . 3 . Swap 9 | . 6 3 Drop 9 | . 8 1 Fire 39 | . 27 12 Melee . | . . . Ram . | . . . Kick 2 | 1 1 . Crush . | . . . Escape Stasis . | . . . Rewire . | . . . Trap . | . . . Miscellaneous . | . . . Route ------- -11/Scrapyard -10/Materials (discovered 3 exits: [*Mat] / [*Min x2]) -9/Materials History --------- Turn | Location | Event 20 | -11/Scrapyard | Discovered new exit (range 15) 111 | -11/Scrapyard | Entered Materials 199 | -10/Materials | Discovered new exit (range 16) 285 | -10/Materials | Discovered new exit (range 15) 310 | -10/Materials | Build established: Mutant 532 | -10/Materials | Discovered new exit (range 13) 653 | -10/Materials | Core integrity fell below 50% 704 | -10/Materials | Entered another Materials area 704 | -9/Materials | Evolved 2 slots: Propulsion x2 1139 | -9/Materials | Self-destructed Last Messages --------------- Overheating: Core damaged (-56). Sensor Array destroyed. K-01 Serf collects debris. Power failure, Ion Engine shutdown. G-47 Trooper suffers critical hit (Burn). Aluminum Leg destroyed. Overheating: Lrg. Storage Unit damaged (-161). Overheating: Ion Engine damaged (-17). Overheating: Aluminum Leg damaged (-3). Overheating: Aluminum Leg damaged (-8). K-01 Serf collects debris. Overheating: Particle Gun damaged (-42). Overheating: Aluminum Leg damaged (-4). Overheating: Lgt. Armor Plating damaged (-24). Overheating: Ion Engine damaged (-5). Aluminum Leg broken. Overheating: Short circuit. Broken Aluminum Leg destroyed. Aluminum Leg destroyed. K-01 Serf collects debris. Map ----- +----------------------------------------------------+ | """ #?# """ # # #?????????????? | | #?# "R # # #?????????????? | | ##+##### """ + ####+###+####+###?????????????? | | ## "" # # #?? #???????????????? | | ## # # """ #?? #???????????????? | | ######### #""""" ### #???????????????? | | ## = #""""" # #???????????????? | | ## #""""" # #???????????????? | | ## ""# """ + #???????????????? | | ## """ """ Y"# # #???????????????? | | ## """"""""" ""# ! # #???????????????? | | ## """"" " ########### #???????????????? | | ## #?????????# #???????????????? | | ## #?????????# #???????????????? | | ## #?????????# #???????????????? | | ## #?????????# #???????????????? | | ## #???####### #???????????????? | | ?# ###/### #???# ## #???????????????? | | ?######## #######???# o ## #???????????????? | | ????????# "" #?????????# ## #???????????????? | | ????????# Y" #?????????# ## #???????????????? | | ????????# "" #?????????# Y/^ #???????????????? | | ????????# #?????????# ug## #???????????????? | | ????????######?????????# ## #???????????????? | | ???????????????????????# ## #???????????????? | | ???????????????????????# @k ## #???????????????? | | ???????????????????????###/### #???????????????? | | ????????????????????????? = ???????????????? | | ????????????????????????? ??????????????? | | ????????????????????????? ?????????????? | | ?????????????????????????########+##?????????????? | | ?????????????????????????????????????????????????? | | ?????????????????????????????????????????????????? | | ?????????????????????????????????????????????????? | | ?????????????????????????????????????????????????? | | ?????????????????????????????????????????????????? | | ?????????????????????????????????????????????????? | | ?????????????????????????????????????????????????? | | ?????????????????????????????????????????????????? | | ?????????????????????????????????????????????????? | | ?????????????????????????????????????????????????? | | ?????????????????????????????????????????????????? | | ?????????????????????????????????????????????????? | | ?????????????????????????????????????????????????? | | ?????????????????????????????????????????????????? | | ?????????????????????????????????????????????????? | | ?????????????????????????????????????????????????? | | ?????????????????????????????????????????????????? | | ?????????????????????????????????????????????????? | | ?????????????????????????????????????????????????? | +----------------------------------------------------+ Best States ------------- Heat Dissipation 35 Energy Generation 10 Energy Capacity 250 Matter Stores 300 Matter Capacity 300 Sight Range 16 Robot Scan Range 14 Terrain Scan Density 10 Evasion (%) 55 Item Schematics ----------------- None Robot Schematics ------------------ None Fabricated ------------ Nothing Repaired ---------- Nothing Studied --------- None Alien Tech Used ----------------- None Achievements -------------- None Challenges ------------ None Game ------ Seed CommMultinovaRedirector Manual? 0 Play Time 00:17:29 Cumulative 12.6 hours Start 2026.02.17 @ 20:48:56 End 2026.02.17 @ 21:04:23 Sessions 1 Manual Loads 0 Difficulty Rogue Special Mode None Game No. 25 Rogue 25 Adventurer 0 Explorer 0 Win Type - Total 0 Types 0/0/0/0/0/0/0/0/0/0 Lore% 1 Gallery% 13 Achievement% 8 Wizard Run 0 Options --------- Layout 0 ASCII 0 Keyboard 1 Movement Vi Keybinds 0 Fullscreen 2 Font 24/Smallcaps Map View 76x50 Zoom Use 0% Tactical HUD 0 Map Filters NONE Filters NONE Steam 1 RUN: 742cd469-f077-4dc2-bd40-1ab58aab2803